fUSD/lending_fUSD_20241119
["ID","MTS","AMOUNT","RATE_DAILY","PERIOD"]
[342650586,1732024299180,-540.00945007,9.999e-05,2]
[342650587,1732024299189,-554.58,9.999e-05,2]
[342650588,1732024299199,-554.58,9.999e-05,2]
[342650589,1732024299210,-546.09367485,9.999e-05,2]
[342650590,1732024299220,-554.58,9.999e-05,2]
[342650591,1732024299374,-554.81,9.999e-05,2]
[342650592,1732024299385,-500.0,9.999e-05,2]
[342650593,1732024299395,-500.0,9.999e-05,2]
[342650594,1732024299404,-463.83365103,9.999e-05,2]
[342650595,1732024299414,-500.0,9.999e-05,2]
[342650596,1732024299423,-668.62,9.999e-05,2]
[342650597,1732024299432,-668.62,9.999e-05,2]
[342650598,1732024299442,-668.62,9.999e-05,2]
[342650599,1732024299452,-668.62,9.999e-05,2]
[342650600,1732024299461,-500.0,9.999e-05,2]
[342650601,1732024299471,-500.0,9.999e-05,2]
[342650602,1732024299480,-500.0,9.999e-05,2]
[342650603,1732024299490,-668.62,9.999e-05,2]
[342650604,1732024299499,-500.0,9.999e-05,2]
[342650605,1732024299509,-553.92,9.999e-05,2]
[342650606,1732024299518,-500.0,9.999e-05,2]
[342650607,1732024299528,-668.62,9.999e-05,2]
[342650608,1732024299537,-581.15023303,9.999e-05,2]
[342650609,1732024299547,-668.62,9.999e-05,2]
[342650610,1732024299556,-500.0,9.999e-05,2]
[342650611,1732024299565,-668.62,9.999e-05,2]
[342650612,1732024299575,-500.0,9.999e-05,2]
[342650613,1732024299587,-500.0,9.999e-05,2]
[342650614,1732024299596,-668.62,9.999e-05,2]
[342650615,1732024299605,-668.72,9.999e-05,2]
[342650616,1732024299615,-500.0,9.999e-05,2]
[342650617,1732024299624,-500.0,9.999e-05,2]
[342650618,1732024299634,-500.0,9.999e-05,2]
[342650619,1732024299643,-500.0,9.999e-05,2]
[342650620,1732024299653,-500.0,9.999e-05,2]
[342650621,1732024299662,-500.0,9.999e-05,2]
[342650622,1732024299672,-315.79472555,9.999e-05,2]
[342650623,1732024299682,-500.0,9.999e-05,2]
[342650624,1732024299692,-500.0,9.999e-05,2]
[342650625,1732024299701,-500.0,9.999e-05,2]
[342650626,1732024299711,-500.0,9.999e-05,2]
[342650627,1732024299720,-500.0,9.999e-05,2]
[342650628,1732024299730,-987.43,9.999e-05,2]
[342650629,1732024299739,-639.92,9.999e-05,2]
[342650630,1732024299748,-500.0,9.999e-05,2]
[342650631,1732024299758,-511.20787753,9.999e-05,2]
[342650632,1732024299768,-500.0,9.999e-05,2]
[342650633,1732024299777,-987.43,9.999e-05,2]
[342650634,1732024299787,-500.0,9.999e-05,2]
[342650635,1732024299797,-639.92,9.999e-05,2]
[342650636,1732024299806,-315.52,9.999e-05,2]
[342650637,1732024299815,-500.0,9.999e-05,2]
[342650638,1732024299825,-639.92,9.999e-05,2]
[342650639,1732024299838,-987.43,9.999e-05,2]
[342650640,1732024299847,-500.0,9.999e-05,2]
[342650641,1732024299857,-987.43,9.999e-05,2]
[342650642,1732024299867,-639.92,9.999e-05,2]
[342650643,1732024299877,-500.0,9.999e-05,2]
[342650644,1732024299886,-639.92,9.999e-05,2]
[342650645,1732024299895,-276.56,9.999e-05,2]
[342650646,1732024299905,-987.43,9.999e-05,2]
[342650647,1732024299915,-639.92,9.999e-05,2]
[342650648,1732024299924,-639.92,9.999e-05,2]
[342650649,1732024299934,-987.43,9.999e-05,2]
[342650650,1732024299944,-505.29886313,9.999e-05,2]
[342650651,1732024299953,-639.92,9.999e-05,2]
[342650652,1732024299963,-987.43,9.999e-05,2]
[342650653,1732024299973,-987.43,9.999e-05,2]
[342650654,1732024299983,-640.05879361,9.999e-05,2]
[342650655,1732024299993,-987.43,9.999e-05,2]
[342650656,1732024300003,-500.0,9.999e-05,2]
[342650657,1732024300012,-548.61,9.999e-05,2]
[342650658,1732024300022,-500.0,9.999e-05,2]
[342650659,1732024300032,-548.61,9.999e-05,2]
[342650660,1732024300042,-987.51,9.999e-05,2]
[342650661,1732024300051,-500.0,9.999e-05,2]
[342650662,1732024300061,-548.61,9.999e-05,2]
[342650663,1732024300071,-502.04312409,9.999e-05,2]
[342650664,1732024300084,-548.61,9.999e-05,2]
[342650665,1732024300096,-548.61,9.999e-05,2]
[342650666,1732024300105,-500.0,9.999e-05,2]
[342650667,1732024300116,-548.61,9.999e-05,2]
[342650668,1732024300128,-548.61,9.999e-05,2]
[342650669,1732024300137,-548.61,9.999e-05,2]
[342650670,1732024300147,-548.61,9.999e-05,2]
[342650671,1732024300156,-548.64,9.999e-05,2]
[342650672,1732024300167,-546.17,9.999e-05,2]
[342650673,1732024300177,-500.0,9.999e-05,2]
[342650674,1732024300187,-500.0,9.999e-05,2]
[342650675,1732024300197,-500.0,9.999e-05,2]
[342650676,1732024300208,-546.17,9.999e-05,2]
[342650677,1732024300223,-500.0,9.999e-05,2]
[342650678,1732024300232,-500.0,9.999e-05,2]
[342650679,1732024300242,-500.0,9.999e-05,2]
[342650680,1732024300252,-546.17,9.999e-05,2]
[342650681,1732024300262,-500.0,9.999e-05,2]
[342650682,1732024300272,-500.0,9.999e-05,2]
[342650683,1732024300282,-500.0,9.999e-05,2]
[342650684,1732024300294,-546.17,9.999e-05,2]
[342650685,1732024300304,-500.0,9.999e-05,2]
[342650686,1732024300313,-500.0,9.999e-05,2]
[342650687,1732024300323,-500.0,9.999e-05,2]
[342650688,1732024300337,-500.0,9.999e-05,2]
[342650689,1732024300346,-546.17,9.999e-05,2]
[342650690,1732024300355,-500.0,9.999e-05,2]
[342650691,1732024300365,-546.17,9.999e-05,2]
[342650692,1732024300374,-500.0,9.999e-05,2]
[342650693,1732024300383,-546.17,9.999e-05,2]
[342650694,1732024300393,-500.0,9.999e-05,2]
[342650695,1732024300403,-546.17,9.999e-05,2]
[342650696,1732024300412,-546.17,9.999e-05,2]
[342650697,1732024300421,-546.26554093,9.999e-05,2]
[342650698,1732024300437,-500.0,9.999e-05,2]
[342650699,1732024300458,-500.0,9.999e-05,2]
[342650700,1732024300476,-500.0,9.999e-05,2]
[342650701,1732024300495,-500.0,9.999e-05,2]
[342650702,1732024300511,-500.0,9.999e-05,2]
[342650703,1732024300529,-500.0,9.999e-05,2]
[342650704,1732024300549,-500.0,9.999e-05,2]
[342650705,1732024300567,-500.0,9.999e-05,2]
[342650706,1732024300592,-500.0,9.999e-05,2]
[342650707,1732024300612,-500.0,9.999e-05,2]
[342650708,1732024300631,-514.40000152,9.999e-05,2]
[342650709,1732024300644,-500.0,9.999e-05,2]
[342650710,1732024300663,-500.0,9.999e-05,2]
[342650711,1732024300676,-500.0,9.999e-05,2]
[342650712,1732024300695,-383.43,9.999e-05,2]
[342650713,1732024300711,-259.35045221,9.999e-05,2]
[342650714,1732024300729,-500.0,9.999e-05,2]
[342650715,1732024300744,-500.0,9.999e-05,2]
[342650716,1732024300760,-500.0,9.999e-05,2]
[342650717,1732024300775,-500.0,9.999e-05,2]
[342650718,1732024300790,-500.0,9.999e-05,2]
[342650719,1732024300805,-500.0,9.999e-05,2]
[342650720,1732024300821,-500.0,9.999e-05,2]
[342650721,1732024300838,-500.0,9.999e-05,2]
[342650722,1732024300853,-500.0,9.999e-05,2]
[342650723,1732024300869,-500.0,9.999e-05,2]
[342650724,1732024300885,-500.0,9.999e-05,2]
[342650725,1732024300901,-500.0,9.999e-05,2]
[342650726,1732024300916,-500.0,9.999e-05,2]
[342650727,1732024300931,-500.0,9.999e-05,2]
[342650728,1732024300946,-500.0,9.999e-05,2]
[342650729,1732024300963,-568.78,9.999e-05,2]
[342650730,1732024300978,-500.0,9.999e-05,2]
[342650731,1732024300993,-500.0,9.999e-05,2]
[342650732,1732024301009,-500.0,9.999e-05,2]
[342650733,1732024301025,-500.0,9.999e-05,2]
[342650734,1732024301040,-500.0,9.999e-05,2]
[342650735,1732024301056,-500.0,9.999e-05,2]
[342650736,1732024301072,-500.0,9.999e-05,2]
[342650737,1732024301091,-500.0,9.999e-05,2]
[342650738,1732024301108,-613.97516317,9.999e-05,2]
[342650739,1732024301124,-500.0,9.999e-05,2]
[342650740,1732024301141,-500.0,9.999e-05,2]
[342650741,1732024301163,-500.0,9.999e-05,2]
[342650742,1732024301180,-500.0,9.999e-05,2]
[342650743,1732024301196,-500.0,9.999e-05,2]
[342650744,1732024301213,-500.0,9.999e-05,2]
[342650745,1732024301233,-500.0,9.999e-05,2]
[342650746,1732024301249,-500.0,9.999e-05,2]
[342650747,1732024301267,-500.0,9.999e-05,2]
[342650748,1732024301283,-500.0,9.999e-05,2]
[342650749,1732024301299,-500.0,9.999e-05,2]
[342650750,1732024301315,-500.0,9.999e-05,2]
[342650751,1732024301329,-500.0,9.999e-05,2]
[342650752,1732024301350,-500.0,9.999e-05,2]
[342650753,1732024301365,-500.0,9.999e-05,2]
[342650754,1732024301381,-500.0,9.999e-05,2]
[342650755,1732024301396,-500.0,9.999e-05,2]
[342650756,1732024301411,-500.0,9.999e-05,2]
[342650757,1732024301426,-500.0,9.999e-05,2]
[342650758,1732024301441,-1209.24,9.999e-05,2]
[342650759,1732024301456,-500.0,9.999e-05,2]
[342650760,1732024301471,-1209.24,9.999e-05,2]
[342650761,1732024301486,-173.08,9.999e-05,2]
[342650762,1732024301501,-1209.24,9.999e-05,2]
[342650763,1732024301516,-500.0,9.999e-05,2]
[342650764,1732024301531,-1209.24,9.999e-05,2]
[342650765,1732024301546,-500.0,9.999e-05,2]
[342650766,1732024301561,-1209.29160325,9.999e-05,2]
[342650767,1732024301576,-500.0,9.999e-05,2]
[342650768,1732024301595,-500.0,9.999e-05,2]
[342650769,1732024301609,-500.0,9.999e-05,2]
[342650770,1732024301623,-42308.91446582,0.0001,2]
[342650771,1732024301637,-928.51790323,0.0001,2]
[342650772,1732024301651,-259.35045221,0.0001,2]
[342650773,1732024301665,-169115.55665171,0.0001,2]
[342650774,1732024302938,-500.0,9.898e-05,2]
[342650775,1732024302948,-500.0,9.899e-05,2]
[342650776,1732024302958,-500.0,9.998e-05,2]
[342650777,1732024302968,-500.0,9.999e-05,2]
[342650778,1732024302977,-3627.07404977,0.0001,2]
[342650779,1732024302988,-169727.03891674,0.0001,2]
[342650780,1732024303013,-500.0,9.899e-05,2]
[342650781,1732024303022,-6907.599999,0.0001,2]
[342650782,1732024303301,-500.0,9.898e-05,2]
[342650783,1732024303311,-500.0,9.899e-05,2]
[342650784,1732024303321,-343.2,9.899e-05,2]
[342650785,1732024303333,-500.68779381,9.993e-05,2]
[342650786,1732024303343,-500.0,9.993e-05,2]
[342650787,1732024303352,-500.0,9.997e-05,2]
[342650788,1732024303362,-500.0,9.997e-05,2]
[342650789,1732024303371,-222.37229397,9.997e-05,2]
[342650790,1732024303382,-500.0,9.999e-05,2]
[342650791,1732024303392,-265.25490052,9.999e-05,2]
[342650792,1732024303402,-500.0,9.999e-05,2]
[342650793,1732024303411,-500.0,9.999e-05,2]
[342650794,1732024303421,-500.0,9.999e-05,2]
[342650795,1732024303431,-1098.00813129,9.999e-05,2]
[342650796,1732024303441,-510.79703629,9.999e-05,2]
[342650797,1732024303452,-500.0,9.999e-05,2]
[342650798,1732024303462,-183.48485696,9.999e-05,2]
[342650799,1732024303471,-500.0,9.999e-05,2]
[342650800,1732024303481,-500.0,9.999e-05,2]
[342650801,1732024303491,-500.0,9.999e-05,2]
[342650802,1732024303500,-36336.19498716,0.0001,2]
[342650803,1732024303513,-304.11522036,0.0001,2]
[342650804,1732024303564,-301.50379308,9.888e-05,2]
[342650805,1732024303573,-637.92493984,0.0001,2]
[342650806,1732024303587,-45917.29290073,0.0001,2]
[342650807,1732024303598,-4672.69279882,0.0001,2]
[342650808,1732024303609,-1987.51525054,0.0001,2]
[342650809,1732024303620,-4388.22808258,0.0001,2]
[342650810,1732024303639,-500.0,9.999e-05,2]
[342650811,1732024303648,-812257.99635571,0.0001,2]
[342650812,1732024303659,-5477.5004,0.0001,2]
[342650813,1732024303671,-13769.04208496,0.0001,2]
[342650814,1732024303685,-8458258.59387499,0.0001,2]
[342650815,1732024303695,-7999.27523981,0.0001,2]
[342650816,1732024303705,-1003.0,0.0001,2]
[342650817,1732024303716,-250.0,0.0001,2]
[342650818,1732024303726,-215.0,0.0001,2]
[342650819,1732024303735,-215.0,0.0001,2]
[342650820,1732024303747,-215.0,0.0001,2]
[342650821,1732024303757,-215.0,0.0001,2]
[342650822,1732024303766,-215.0,0.0001,2]
[342650823,1732024303775,-215.0,0.0001,2]
[342650824,1732024303784,-215.0,0.0001,2]
[342650825,1732024303794,-215.0,0.0001,2]
[342650826,1732024303803,-215.0,0.0001,2]
[342650827,1732024303812,-215.0,0.0001,2]
[342650828,1732024303822,-282.457,0.0001,2]
[342650829,1732024303833,-215.0,0.0001,2]
[342650830,1732024303844,-245.382,0.0001,2]
[342650831,1732024303855,-208.0,0.0001,2]
[342650832,1732024303864,-204.0,0.0001,2]
[342650833,1732024303873,-208.0,0.0001,2]
[342650834,1732024303882,-204.0,0.0001,2]
[342650835,1732024303891,-208.0,0.0001,2]
[342650836,1732024303901,-204.0,0.0001,2]
[342650837,1732024303911,-208.0,0.0001,2]
[342650838,1732024303921,-204.0,0.0001,2]
[342650839,1732024303931,-208.0,0.0001,2]
[342650840,1732024303943,-204.0,0.0001,2]
[342650841,1732024303953,-208.0,0.0001,2]
[342650842,1732024303963,-204.0,0.0001,2]
[342650843,1732024303973,-208.0,0.0001,2]
[342650844,1732024303983,-204.0,0.0001,2]
[342650845,1732024303993,-208.0,0.0001,2]
[342650846,1732024304002,-204.0,0.0001,2]
[342650847,1732024304012,-208.0,0.0001,2]
[342650848,1732024304022,-208.0,0.0001,2]
[342650849,1732024304033,-208.0,0.0001,2]
[342650850,1732024304042,-730.77,0.0001,2]
[342650851,1732024304052,-150.31,0.0001,2]
[342650852,1732024304061,-1000.0,0.0001,2]
[342650853,1732024304070,-1000.0,0.0001,2]
[342650854,1732024304080,-1000.0,0.0001,2]
[342650855,1732024304094,-1000.0,0.0001,2]
[342650856,1732024304104,-5800.0,0.0001,2]
[342650857,1732024304113,-250.0,0.0001,2]
[342650858,1732024304123,-250.0,0.0001,2]
[342650859,1732024304133,-250.0,0.0001,2]
[342650860,1732024304142,-250.0,0.0001,2]
[342650861,1732024304151,-250.0,0.0001,2]
[342650862,1732024304161,-250.0,0.0001,2]
[342650863,1732024304170,-250.0,0.0001,2]
[342650864,1732024304180,-250.0,0.0001,2]
[342650865,1732024304189,-250.0,0.0001,2]
[342650866,1732024304198,-250.0,0.0001,2]
[342650867,1732024304207,-250.0,0.0001,2]
[342650868,1732024304220,-250.0,0.0001,2]
[342650869,1732024304230,-250.0,0.0001,2]
[342650870,1732024304238,-250.0,0.0001,2]
[342650871,1732024304248,-250.0,0.0001,2]
[342650872,1732024304258,-250.0,0.0001,2]
[342650873,1732024304267,-250.0,0.0001,2]
[342650874,1732024304276,-250.0,0.0001,2]
[342650875,1732024304286,-250.0,0.0001,2]
[342650876,1732024304296,-250.0,0.0001,2]
[342650877,1732024304306,-250.0,0.0001,2]
[342650878,1732024304315,-250.0,0.0001,2]
[342650879,1732024304324,-250.0,0.0001,2]
[342650880,1732024304338,-478.6,0.0001,2]
[342650881,1732024304352,-1000.0,0.0001,2]
[342650882,1732024304361,-2922.55280984,0.0001,2]
[342650883,1732024304371,-1078942.41729077,0.0001,2]
[342650884,1732024304380,-11563.17004689,0.0001,2]
[342650885,1732024304389,-7845359.8360664,0.0001,2]
[342650886,1732024304822,-305.84903003,9.899e-05,2]
[342650887,1732024304842,-500.0,9.999e-05,2]
[342650888,1732024304852,-500.0,9.999e-05,2]
[342650889,1732024304862,-500.0,9.999e-05,2]
[342650890,1732024304872,-500.0,9.999e-05,2]
[342650891,1732024304882,-339532.26020294,0.0001,2]
[342650892,1732024304902,-604.04224659,9.999e-05,2]
[342650893,1732024304912,-86941.04794809,0.0001,2]
[342650894,1732024304923,-5620.0,0.0001,2]
[342650895,1732024304935,-3669.666,0.0001,2]
[342650896,1732024304946,-218663.69215609,0.0001,2]
[342650897,1732024305324,-500.0,9.897e-05,2]
[342650898,1732024305336,-500.0,9.898e-05,2]
[342650899,1732024305346,-500.0,9.899e-05,2]
[342650900,1732024305356,-500.0,9.899e-05,2]
[342650901,1732024305366,-500.0,9.997e-05,2]
[342650902,1732024305377,-487.8,9.997e-05,2]
[342650903,1732024305386,-500.0,9.999e-05,2]
[342650904,1732024305395,-500.0,9.999e-05,2]
[342650905,1732024305404,-317.19934253,9.999e-05,2]
[342650906,1732024305413,-618.21289075,9.999e-05,2]
[342650907,1732024305423,-500.0,9.999e-05,2]
[342650908,1732024305432,-219713.4592549,0.0001,2]
[342650909,1732024305444,-1539.80758481,0.0001,2]
[342650910,1732024305455,-9985.44859046,0.0001,2]
[342650911,1732024305467,-6415.82197923,0.0001,2]
[342650912,1732024305479,-14962.71810253,0.0001,2]
[342650913,1732024305491,-840.36166212,0.0001,2]
[342650914,1732024305502,-5349.2586827,0.0001,2]
[342650915,1732024305513,-3272.50755232,0.0001,2]
[342650916,1732024305525,-26984.78640251,0.0001,2]
[342650917,1732024305537,-8760.85764873,0.0001,2]
[342650918,1732024305556,-500.0,9.999e-05,2]
[342650919,1732024305566,-572.56609243,0.0001,2]
[342650920,1732024305577,-26553.62606792,0.0001,2]
[342650921,1732024305590,-1233.42647505,0.0001,2]
[342650922,1732024305601,-1213.45,0.0001,2]
[342650923,1732024305963,-500.0,9.899e-05,2]
[342650924,1732024305974,-498.72290325,9.993e-05,2]
[342650925,1732024305984,-75.81221094,9.999e-05,2]
[342650926,1732024305995,-424.18778906,9.999e-05,2]
[342650927,1732024306006,-500.0,9.999e-05,2]
[342650928,1732024306016,-217.96247949,9.999e-05,2]
[342650929,1732024306028,-282.03752051,9.999e-05,2]
[342650930,1732024306037,-500.0,9.999e-05,2]
[342650931,1732024306047,-498.5855125,9.999e-05,2]
[342650932,1732024306056,-500.0,9.999e-05,2]
[342650933,1732024306066,-500.0,9.999e-05,2]
[342650934,1732024306076,-500.0,9.999e-05,2]
[342650935,1732024306087,-500.0,9.999e-05,2]
[342650936,1732024306097,-500.0,9.999e-05,2]
[342650937,1732024306107,-500.0,9.999e-05,2]
[342650938,1732024306116,-500.0,9.999e-05,2]
[342650939,1732024306126,-500.0,9.999e-05,2]
[342650940,1732024306135,-3870.87696699,0.0001,2]
[342650941,1732024306155,-954.90548464,0.0001,2]
[342650942,1732024306172,-5445.06,0.0001,2]
[342650943,1732024306183,-47295.77609698,0.0001,2]
[342650944,1732024306202,-500.0,9.999e-05,2]
[342650945,1732024306212,-91112.45108919,0.0001,2]
[342650946,1732024306226,-1103863.09536974,0.0001,2]
[342650947,1732024410945,161.64,0.00012,31]
[342650948,1732024410980,161.64,0.00012,31]
[342650949,1732024411012,161.64,0.00012,31]
[342650950,1732024424446,798.98,0.00012012,15]
[342650951,1732024426834,203.67,0.00023,120]
[342650952,1732024448924,-195.25,8.971e-05,2]
[342650953,1732024512714,150.0,8.219e-05,2]
[342650954,1732024512737,150.0,8.219e-05,2]
[342650955,1732024512759,150.0,8.219e-05,2]
[342650956,1732024512784,150.0,8.219e-05,2]
[342650957,1732024512805,150.0,8.219e-05,2]
[342650958,1732024512826,150.0,8.219e-05,2]
[342650959,1732024512848,150.0,8.219e-05,2]
[342650960,1732024512868,150.0,8.219e-05,2]
[342650961,1732024512890,25.91,8.219e-05,2]
[342650963,1732024662183,1500.0,8.14e-05,2]
[342650964,1732024662240,1500.0,7.722e-05,2]
[342650965,1732024714053,-400.0,8.868e-05,2]
[342650966,1732024714355,-402.45,8.868e-05,2]
[342650967,1732024763228,-250.0,8.868e-05,2]
[342650968,1732024819078,-691.27413227,8.859e-05,2]
[342650969,1732025012145,161.68,0.00012,31]
[342650970,1732025012190,161.68,0.00012,31]
[342650971,1732025012243,161.68,0.00012,31]
[342650972,1732025012300,161.68,0.00012,31]
[342650973,1732025012363,161.68,0.00012,31]
[342650974,1732025012417,161.68,0.00012,31]
[342650975,1732025012483,161.68,0.00012,31]
[342650980,1732025341131,1182.86,8.219e-05,2]
[342650991,1732025431992,-231.22,8.594e-05,2]
[342650993,1732025432002,-164.9,8.745e-05,2]
[342650994,1732025432012,-8105.81765521,8.755e-05,2]
[342650995,1732025432023,-310.40957991,8.755e-05,2]
[342650996,1732025432163,-486.97276488,8.755e-05,2]
[342650997,1732025432172,-250.0,8.783e-05,2]
[342650998,1732025432182,-250.0,8.79e-05,2]
[342650999,1732025432191,-300.0,8.796e-05,2]
[342651000,1732025432200,-377.82,8.797e-05,2]
[342651001,1732025432209,-113.23260569,8.805e-05,2]
[342651002,1732025432233,-164.04739431,8.805e-05,2]
[342651003,1732025432242,-1885.45,8.814e-05,2]
[342651004,1732025432252,-308.72586773,8.859e-05,2]
[342651005,1732025432261,-4005.26103466,8.871e-05,2]
[342651006,1732025432273,-2850.0,8.871e-05,2]
[342651007,1732025432285,-18429.74896534,8.871e-05,2]
[342651008,1732025432296,-900.0,9.1e-05,3]
[342651009,1732025432306,-167.48,9.11e-05,2]
[342651010,1732025432315,-1900.0,9.2e-05,3]
[342651011,1732025432325,-2800.0,9.3e-05,3]
[342651012,1732025432334,-3800.0,9.4e-05,3]
[342651013,1732025432343,-150.0,9.441e-05,2]
[342651014,1732025432353,-150.0,9.445e-05,2]
[342651015,1732025432362,-4800.0,9.5e-05,3]
[342651016,1732025432371,-160.867206,9.501e-05,2]
[342651017,1732025432381,-150.0,9.501e-05,2]
[342651018,1732025432390,-11684.8752,9.502e-05,2]
[342651019,1732025432400,-6160.7105,9.502e-05,2]
[342651020,1732025432409,-263.683,9.502e-05,2]
[342651021,1732025432418,-3181.8995,9.502e-05,2]
[342651022,1732025432428,-5000.0,9.502e-05,2]
[342651023,1732025432437,-570.6012,9.502e-05,2]
[342651024,1732025432446,-880.2941,9.502e-05,2]
[342651025,1732025432456,-347.13859257,9.583e-05,2]
[342651026,1732025432465,-500.0,9.583e-05,2]
[342651027,1732025432475,-500.0,9.583e-05,2]
[342651028,1732025432484,-900.0,9.6e-05,3]
[342651029,1732025432493,-1006.0,9.6e-05,2]
[342651030,1732025432503,-4574.2277,9.602e-05,2]
[342651031,1732025432512,-7560.69,9.602e-05,2]
[342651032,1732025432521,-5336.80568609,9.602e-05,2]
[342651033,1732025432549,-89947.79881391,9.602e-05,2]
[342651034,1732025432558,-11517.3832,9.602e-05,2]
[342651035,1732025432568,-377858.1186,9.602e-05,2]
[342651036,1732025432581,-150.0,9.644e-05,2]
[342651037,1732025432590,-150.99,9.67e-05,2]
[342651038,1732025432599,-150.0,9.674e-05,2]
[342651039,1732025432609,-420.0,9.675e-05,2]
[342651040,1732025432618,-1000.0,9.7e-05,2]
[342651041,1732025432628,-3139.0659,9.7e-05,2]
[342651042,1732025432637,-900.0,9.7e-05,3]
[342651043,1732025432646,-55919.36982447,9.8e-05,2]
[342651044,1732025432656,-900.0,9.8e-05,3]
[342651045,1732025432666,-310.8649315,9.863e-05,2]
[342651046,1732025432676,-334.57844567,9.863e-05,2]
[342651047,1732025432685,-500.0,9.863e-05,2]
[342651048,1732025432694,-500.0,9.863e-05,2]
[342651049,1732025432704,-500.0,9.863e-05,2]
[342651050,1732025432713,-500.0,9.863e-05,2]
[342651051,1732025432722,-500.0,9.863e-05,2]
[342651052,1732025432732,-500.0,9.863e-05,2]
[342651053,1732025432742,-500.0,9.863e-05,2]
[342651054,1732025432752,-500.0,9.863e-05,2]
[342651055,1732025432761,-566.13157838,9.863e-05,2]
[342651056,1732025432771,-500.0,9.863e-05,2]
[342651057,1732025432780,-291.50542213,9.863e-05,2]
[342651058,1732025432790,-500.0,9.863e-05,2]
[342651059,1732025432804,-500.0,9.863e-05,2]
[342651060,1732025432813,-500.0,9.863e-05,2]
[342651061,1732025432822,-500.0,9.863e-05,2]
[342651062,1732025432831,-500.0,9.863e-05,2]
[342651063,1732025432841,-500.0,9.863e-05,2]
[342651064,1732025432850,-500.0,9.863e-05,2]
[342651065,1732025432859,-500.0,9.863e-05,2]
[342651066,1732025432869,-249.01,9.863e-05,2]
[342651067,1732025432879,-840.43,9.863e-05,2]
[342651068,1732025432888,-840.43,9.863e-05,2]
[342651069,1732025432897,-500.0,9.863e-05,2]
[342651070,1732025432906,-500.0,9.863e-05,2]
[342651071,1732025432916,-500.0,9.863e-05,2]
[342651072,1732025432925,-313.01069492,9.863e-05,2]
[342651073,1732025432934,-500.0,9.863e-05,2]
[342651075,1732025432944,-500.0,9.863e-05,2]
[342651077,1732025432953,-500.0,9.863e-05,2]
[342651078,1732025432962,-500.0,9.863e-05,2]
[342651080,1732025432972,-500.0,9.863e-05,2]
[342651082,1732025432982,-184.75,9.863e-05,2]
[342651084,1732025432991,-500.0,9.863e-05,2]
[342651086,1732025433001,-500.0,9.863e-05,2]
[342651088,1732025433010,-500.0,9.863e-05,2]
[342651090,1732025433020,-500.0,9.863e-05,2]
[342651092,1732025433030,-500.0,9.863e-05,2]
[342651094,1732025433039,-500.0,9.863e-05,2]
[342651096,1732025433051,-500.0,9.863e-05,2]
[342651098,1732025433061,-500.0,9.863e-05,2]
[342651100,1732025433071,-500.0,9.863e-05,2]
[342651102,1732025433081,-500.0,9.863e-05,2]
[342651104,1732025433091,-500.0,9.863e-05,2]
[342651106,1732025433101,-364.41143224,9.863e-05,2]
[342651109,1732025433111,-500.0,9.863e-05,2]
[342651112,1732025433121,-500.0,9.863e-05,2]
[342651114,1732025433130,-502.39918544,9.863e-05,2]
[342651116,1732025433140,-500.0,9.863e-05,2]
[342651118,1732025433149,-446.95,9.863e-05,2]
[342651120,1732025433159,-306.86699652,9.863e-05,2]
[342651122,1732025433169,-500.0,9.863e-05,2]
[342651124,1732025433179,-500.0,9.863e-05,2]
[342651126,1732025433189,-500.0,9.863e-05,2]
[342651128,1732025433200,-386.67,9.863e-05,2]
[342651130,1732025433209,-500.0,9.863e-05,2]